bitfinex/quotes_ETHUSD_20240714
["timestamp","ask_amount","ask_price","bid_price","bid_amount"]
[1720940547755,1.08330866,3198.0,3197.9,3.17836204]
[1720940549037,1.08330866,3198.0,3197.9,9.42493124]
[1720940549242,3.07964429,3198.7,3198.2,2.2627]
[1720940549480,0.32750227,3198.5,3198.2,5.38944]
[1720940549656,1.08321064,3198.4,3198.3,0.05118674]
[1720940550074,1.08321064,3198.4,3198.2,5.38944]
[1720940550256,0.32750227,3198.5,3198.3,0.05118674]
[1720940550460,1.0818312,3198.4,3198.3,0.05118674]
[1720940550675,1.0818312,3198.4,3198.2,5.38944]
[1720940550880,0.32750227,3198.5,3198.3,0.05118674]
[1720940551280,0.32750227,3198.5,3198.2,5.38944]
[1720940551659,0.32750227,3198.5,3198.3,0.05118674]
[1720940551991,0.32750227,3198.5,3198.3,0.05034321]
[1720940552187,0.32750227,3198.5,3198.2,5.38944]
[1720940552392,0.32750227,3198.5,3198.4,0.0511273]
[1720940552596,0.32750227,3198.5,3198.2,5.38944]
[1720940552889,0.32750227,3198.5,3198.4,0.0511273]
[1720940553053,0.32750227,3198.5,3198.3,0.05115862]
[1720940553249,0.32750227,3198.5,3198.4,0.0511273]
[1720940553991,0.32750227,3198.5,3198.2,5.38941]
[1720940554377,0.32750227,3198.5,3198.3,0.05108376]
[1720940554587,0.32750227,3198.5,3198.2,2.2627]
[1720940554764,0.791,3198.4,3198.2,2.2627]
[1720940555863,0.32750227,3198.5,3198.2,2.2627]
[1720940556907,0.32750227,3198.5,3198.2,6.241046]
[1720940557059,0.32750227,3198.5,3198.4,3.12656]
[1720940558270,0.32750227,3198.5,3198.4,5.38926]
[1720940559661,0.32750227,3198.5,3198.4,5.44031244]
[1720940560294,2.28848971,3199.0,3198.5,3.12639]
[1720940560510,3.0,3199.2,3198.6,2.3482]
[1720940560511,1.0831584,3198.9,3198.6,2.3482]
[1720940560679,1.0831584,3198.8,3198.6,2.39911955]
[1720940560866,1.0831584,3198.7,3198.6,2.39911955]
[1720940562199,0.32755012,3198.9,3198.6,2.39911955]
[1720940562366,1.08316801,3198.7,3198.6,2.39911955]
[1720940565626,1.08315957,3198.7,3198.6,2.39911955]
[1720940568718,0.32755012,3198.9,3198.6,2.39911955]
[1720940569016,1.08315097,3198.8,3198.6,2.46163971]
[1720940569183,1.08315097,3198.8,3198.6,2.39911955]
[1720940570307,1.08315097,3198.8,3198.6,3.32682918]
[1720940570508,1.08315097,3198.8,3198.7,2.4295]
[1720940570719,1.08315097,3198.8,3198.7,5.55577]
[1720940571011,1.08315097,3198.8,3198.7,8.73286868]
[1720940571528,1.11851119,3199.6,3199.2,2.4295]
[1720940571690,1.08287348,3199.5,3199.2,2.4295]
[1720940572024,1.11851119,3199.6,3199.3,0.05064084]
[1720940572228,1.11851119,3199.6,3199.4,3.12558]
[1720940572229,1.08286508,3199.5,3199.4,3.12558]
[1720940572398,1.08286508,3199.5,3199.4,5.92956262]
[1720940572583,1.08271694,3199.5,3199.4,2.80398262]
[1720940572789,1.08271694,3199.5,3199.4,2.48010954]
[1720940573331,1.08271694,3199.5,3199.4,0.05060954]
[1720940573712,1.87371694,3199.5,3199.0,2.4295]
[1720940573917,0.32751119,3199.6,3199.4,0.05052099]
[1720940574247,1.8739202,3199.5,3199.0,2.4295]
[1720940574386,0.791,3199.3,3199.0,2.4295]
[1720940574589,1.0829202,3199.2,3199.0,2.4295]
[1720940575125,0.791,3199.3,3199.0,2.4295]
[1720940575331,1.08293277,3199.2,3199.0,2.4295]
[1720940575532,1.08293277,3199.1,3199.0,5.55546]
[1720940575702,1.08293277,3199.1,3199.0,7.165611]
[1720940577495,1.08293277,3199.1,3199.0,10.291581]
[1720940577695,0.32751119,3199.6,3199.4,2.4295]
[1720940578038,1.08278215,3199.5,3199.4,2.4295]
[1720940578528,1.08277797,3199.5,3199.4,2.4295]
[1720940578718,1.08277821,3199.5,3199.4,2.4295]
[1720940579225,1.08277821,3199.5,3199.4,2.48002099]
[1720940579805,1.08277821,3199.5,3199.4,5.60560099]
[1720940581144,1.08276513,3199.5,3199.4,5.66810764]
[1720940581452,1.08276513,3199.5,3199.4,6.48497275]
[1720940581626,0.32751119,3199.6,3199.5,3.12548]
[1720940581812,1.41025285,3199.6,3199.5,3.17581553]
[1720940584261,1.41025285,3199.6,3199.5,5.57161553]
[1720940584262,0.32751119,3199.6,3199.5,5.57161553]
[1720940584466,1.41023613,3199.6,3199.5,5.57161553]
[1720940584745,0.32751119,3199.6,3199.5,6.52927526]
[1720940585147,1.41023107,3199.6,3199.5,6.52927526]
[1720940587055,1.41023107,3199.6,3199.5,5.57161553]
[1720940587256,1.41023107,3199.6,3199.5,0.05033553]
[1720940587455,1.11851119,3199.6,3199.5,0.05033553]
[1720940587654,2.2013279,3199.6,3198.9,12.90552]
[1720940587866,0.90460552,3199.5,3199.1,0.791]
[1720940588062,0.90460552,3199.5,3199.4,0.791]
[1720940588225,0.32751119,3199.6,3199.4,0.83969213]
[1720940588843,0.32751119,3199.6,3199.5,1.59156855]
[1720940589052,0.8926,3200.4,3199.5,7.12521395]
[1720940589329,0.32707424,3200.1,3199.8,0.791]
[1720940589742,0.32707424,3200.1,3199.9,0.0485265]
[1720940592269,0.32707424,3200.1,3200.0,3.125]
[1720940592430,0.32707424,3200.1,3200.0,3.17345097]
[1720940594173,0.32707424,3200.1,3200.0,6.29845097]
[1720940594964,0.32707424,3200.1,3200.0,7.08945097]
[1720940595562,0.32707424,3200.1,3200.0,8.34686007]
[1720940596735,0.32707424,3200.1,3200.0,11.47186007]
[1720940598433,0.32707424,3200.1,3200.0,10.21445097]
[1720940600171,0.32707424,3200.1,3200.0,9.42345097]
[1720940605381,0.32707424,3200.1,3200.0,11.89295097]
[1720940606185,0.32707424,3200.1,3200.0,12.68395097]
[1720940607240,0.32707424,3200.1,3200.0,11.89295097]
[1720940607446,0.32707424,3200.1,3200.0,13.87324607]
[1720940607863,0.32707424,3200.1,3200.0,10.61274607]
[1720940609993,0.32707424,3200.1,3200.0,13.08224607]
[1720940610148,0.8926,3200.9,3200.8,3.12421]
[1720940610544,0.8926,3200.9,3200.8,3.17232377]
[1720940610743,1.21975987,3200.9,3200.8,6.29653377]
[1720940611375,0.32715987,3200.9,3200.8,6.29653377]
[1720940614433,0.32715987,3200.9,3200.8,13.31089715]
[1720940615365,0.8926,3202.1,3201.7,3.12334]
[1720940615689,1.21977891,3202.1,3201.8,0.04761505]
[1720940615997,1.21977891,3202.1,3201.9,3.12305]
[1720940616205,1.21977891,3202.1,3202.0,3.12304]
[1720940616503,1.4208568,3202.1,3202.0,3.17059255]
[1720940617079,0.5282568,3202.1,3202.0,3.17059255]
[1720940617397,0.32717891,3202.1,3202.0,3.17059255]
[1720940619602,0.32717891,3202.1,3202.0,6.29363255]
[1720940628382,1.11817891,3202.1,3202.0,0.04755255]
[1720940628739,2.01077891,3202.1,3202.0,0.04755255]
[1720940628902,1.6836,3202.1,3202.0,0.04755255]
[1720940631379,1.6836,3202.1,3201.7,3.12332]
[1720940631582,1.6836,3202.1,3202.0,0.04551986]
[1720940631788,1.6836,3202.1,3201.7,3.12332]
[1720940631986,1.6836,3202.1,3202.0,0.04551986]
[1720940632218,1.6836,3202.1,3201.7,3.12332]
[1720940632724,1.6836,3202.1,3201.8,0.04558236]
[1720940632937,0.791,3201.9,3201.8,0.04558236]
[1720940633129,1.6836,3201.9,3201.1,3.12385]
[1720940633285,0.791,3201.6,3201.1,3.12385]
[1720940633490,0.791,3201.6,3200.9,3.12409]
[1720940633811,1.182426,3201.6,3201.0,3.124]
[1720940638943,1.182426,3201.6,3201.1,0.04435248]
[1720940639955,0.391426,3201.6,3201.1,0.04435248]
[1720940640519,0.791,3201.8,3201.1,0.04435248]
[1720940640960,0.791,3201.8,3201.1,3.16819248]
[1720940641576,0.16836,3202.1,3201.3,3.12365]
[1720940641782,0.95936,3202.1,3201.3,3.12365]
[1720940641973,0.95936,3202.1,3201.4,0.04445682]
[1720940642271,0.95936,3202.1,3201.5,2.4444]
[1720940642581,0.791,3202.3,3201.7,3.12327]
[1720940642874,0.791,3202.3,3201.8,0.0443318]
[1720940643046,0.8926,3202.5,3201.9,5.56745]
[1720940643047,0.791,3202.5,3201.9,5.56745]
[1720940643240,1.2252134,3202.5,3202.0,3.1672293]
[1720940643438,0.791,3202.7,3202.0,3.1672293]
[1720940643749,0.791,3202.5,3202.1,3.12288]
[1720940644258,0.791,3202.5,3202.2,0.04418699]
[1720940646680,1.6836,3202.3,3201.6,5.59482]
[1720940646852,1.6836,3202.3,3201.7,0.04434323]
[1720940647038,2.164216,3202.3,3201.7,0.04434323]
[1720940647242,0.32714559,3202.2,3201.7,0.04434323]
[1720940647891,0.791,3202.1,3201.7,0.04434323]
[1720940648043,0.791,3202.1,3201.5,3.12353]
[1720940648238,0.791,3202.1,3201.6,3.16780449]
[1720940648486,0.32714559,3202.2,3201.6,3.16780449]
[1720940649181,0.32714559,3202.2,3201.8,3.12321]
[1720940649541,0.32714559,3202.2,3201.9,3.16725453]
[1720940651576,0.791,3202.4,3201.9,3.16725453]
[1720940653450,0.791,3202.2,3201.9,0.04420453]
[1720940653648,0.791,3202.2,3201.7,3.12333]
[1720940653896,0.791,3202.2,3201.8,0.04411081]
[1720940654054,3.29133,3202.1,3201.4,3.12355]
[1720940654255,3.12297,3202.1,3201.5,0.04420458]
[1720940654567,0.791,3201.6,3201.5,0.04420458]
[1720940654894,0.791,3201.6,3201.3,7.42]
[1720940655049,0.791,3201.4,3201.3,7.42]
[1720940655254,1.182444,3201.4,3201.3,7.42]
[1720940655493,4.306074,3201.4,3201.3,7.42]
[1720940655662,7.429704,3201.4,3201.3,7.42]
[1720940656114,3.12376,3201.3,3200.9,7.42]
[1720940656346,2.28585365,3201.6,3200.9,7.42]
[1720940656485,6.12345,3201.6,3200.9,7.42]
[1720940656684,3.12354,3201.5,3200.9,7.42]
[1720940657281,3.12369,3201.4,3200.9,7.42]
[1720940658128,0.924688,3201.5,3200.9,7.42]
[1720940658282,5.40933365,3201.6,3200.9,7.42]
[1720940658487,2.28588538,3201.8,3201.0,2.4714]
[1720940658685,3.12344,3201.6,3201.0,2.4714]
[1720940659094,5.40912538,3201.8,3201.0,2.4714]
[1720940659095,3.12324,3201.8,3201.0,2.4714]
[1720940659385,3.12334,3201.7,3201.0,2.4714]
[1720940659584,3.12334,3201.7,3201.0,4.5213933]
[1720940660123,3.12334,3201.7,3201.0,2.4714]
[1720940661225,2.28588538,3201.9,3201.0,2.4714]
[1720940661428,5.40895538,3202.0,3201.1,3.12392]
[1720940661652,0.3271515,3201.8,3201.1,3.12392]
[1720940661949,0.3271515,3201.8,3201.1,3.995862]
[1720940662691,0.3271515,3201.8,3201.1,0.871942]
[1720940662917,0.3271515,3201.8,3201.0,5.59541]
[1720940663338,0.3271515,3201.8,3201.1,3.1239]
[1720940664111,0.3271515,3201.8,3201.0,5.59541]
[1720940664318,3.4504115,3201.8,3201.0,5.59541]
[1720940668417,0.3271515,3201.8,3201.1,3.12392]
[1720940668613,0.3271515,3201.8,3201.2,0.559532]
[1720940669032,0.3271515,3201.8,3201.3,0.04449721]
[1720940669437,0.3271515,3201.8,3201.2,0.559532]
[1720940669749,0.3271515,3201.8,3201.3,0.04449721]
[1720940670110,0.3271515,3201.8,3201.2,0.559532]
[1720940670314,0.3271515,3201.8,3201.3,0.41284241]
[1720940670917,0.3271515,3201.8,3201.4,2.4212]
[1720940671116,0.3271515,3201.8,3201.5,0.04443469]
[1720940674145,0.3271515,3201.8,3201.0,5.54516]
[1720940674786,3.12334,3201.7,3201.1,0.04454297]
[1720940675584,0.3271515,3201.8,3201.2,2.4212]
[1720940675957,0.3271515,3201.8,3201.3,0.04436201]
[1720940676488,0.3271515,3201.8,3201.2,5.54495]
[1720940676658,0.3271515,3201.8,3201.4,0.04433075]
[1720940676845,0.2805515,3201.8,3201.4,2.4212]
[1720940677044,0.2805515,3201.8,3201.5,3.42056297]
[1720940680108,0.2805515,3201.8,3201.6,3.12342]
[1720940680391,0.2805515,3201.8,3201.7,2.36238973]
[1720940699085,0.2805515,3201.8,3201.7,0.04268973]
[1720940699383,0.2805515,3201.8,3201.5,2.2738]
[1720940699675,0.2805515,3201.8,3201.7,0.04261504]
[1720940699828,0.2805515,3201.8,3201.6,0.0426463]
[1720940700032,0.2805515,3201.8,3201.7,0.04261504]
[1720940700434,0.2805515,3201.8,3201.5,2.2738]
[1720940700739,0.2805515,3201.8,3201.6,0.0426463]
[1720940701473,0.2805515,3201.8,3201.3,3.12372]
[1720940701646,0.2805515,3201.8,3201.7,0.04261504]
[1720940701845,0.2805515,3201.8,3201.3,3.12372]
[1720940702034,0.2805515,3201.8,3201.7,0.04261504]
[1720940702232,0.2805515,3201.8,3201.3,3.12372]
[1720940702558,0.2805515,3201.8,3201.7,0.04261504]
[1720940703062,0.2805515,3201.8,3201.3,3.12372]
[1720940703241,0.2805515,3201.8,3201.7,0.04261504]
[1720940703447,0.2805515,3201.8,3201.3,3.12372]
[1720940703644,0.2805515,3201.8,3201.7,0.04261504]
[1720940703955,3.4037915,3201.8,3201.7,0.04261504]
[1720940704156,3.4037915,3201.8,3201.2,2.4003]
[1720940704331,3.4037915,3201.8,3201.3,0.04279496]
[1720940704534,3.4037915,3201.8,3201.2,2.4003]
[1720940704767,3.12334,3201.7,3201.3,0.04279496]
[1720940705142,3.12334,3201.7,3201.2,2.4003]
[1720940705344,3.12334,3201.7,3201.3,0.04279496]
[1720940705538,3.12334,3201.7,3201.2,2.4003]
[1720940705746,3.12334,3201.7,3201.3,0.04279496]
[1720940705933,3.12334,3201.7,3201.2,2.4003]
[1720940706163,0.2805515,3201.8,3201.2,2.4003]
[1720940706164,0.2805515,3201.8,3201.3,0.04283306]
[1720940706346,0.2805515,3201.8,3201.2,4.007122]
[1720940706542,3.4038015,3201.8,3201.3,0.04283306]
[1720940706754,3.4038015,3201.8,3201.2,4.007122]
[1720940706968,3.4038015,3201.8,3201.3,0.04283154]
[1720940707469,3.4038015,3201.8,3201.2,4.007122]
[1720940707638,3.4038015,3201.8,3201.4,0.04280028]
[1720940707841,3.4038015,3201.8,3201.2,4.007122]
[1720940707842,3.4038015,3201.8,3201.3,0.04282392]
[1720940708149,3.4038015,3201.8,3201.4,0.04279266]
[1720940708332,3.4038015,3201.8,3201.2,2.4003]
[1720940708531,4.1928015,3201.8,3201.3,0.04282392]
[1720940708956,4.1928015,3201.8,3201.2,2.4003]
[1720940709145,4.1928015,3201.8,3201.3,0.04282392]
[1720940709345,4.1928015,3201.8,3201.2,2.4003]
[1720940709547,4.1928015,3201.8,3201.3,0.04282392]
[1720940709743,4.1928015,3201.8,3201.2,2.4003]
[1720940709951,4.1928015,3201.8,3201.3,0.04282392]
[1720940710273,4.1928015,3201.8,3201.2,2.4003]
[1720940710482,4.1928015,3201.8,3201.4,0.04279266]
[1720940710639,4.1928015,3201.8,3201.3,0.04282392]
[1720940710841,4.1928015,3201.8,3201.5,0.0427614]
[1720940711148,4.1928015,3201.8,3201.6,0.04273014]
[1720940711349,4.1928015,3201.8,3201.2,2.4003]
[1720940711552,4.1928015,3201.8,3201.3,1.33724492]
[1720940712889,3.4038015,3201.8,3201.3,1.33724492]
[1720940714273,3.4038015,3201.8,3201.3,0.04282392]
[1720940714473,3.4038015,3201.8,3201.2,2.4003]
[1720940714701,3.4038015,3201.8,3201.4,0.04280485]
[1720940714873,3.4038015,3201.8,3201.3,0.04283611]
[1720940715074,3.4038015,3201.8,3201.5,0.04277359]
[1720940715274,3.4038015,3201.8,3201.2,2.4003]
[1720940715499,3.4038015,3201.8,3201.6,0.04274233]
[1720940715703,3.4038015,3201.8,3201.2,2.4003]
[1720940715872,3.4038015,3201.8,3201.7,0.04271108]
[1720940716408,3.4038015,3201.8,3201.2,2.4003]
[1720940716702,3.4038015,3201.8,3201.7,0.04271108]
[1720940717174,3.4038015,3201.8,3201.2,2.4003]
[1720940717388,3.4038015,3201.8,3201.3,1.33727691]
[1720940717587,3.12335,3201.7,3201.3,0.04285591]
[1720940718001,3.12335,3201.7,3201.1,7.42]
[1720940718204,3.12335,3201.7,3201.4,0.04282465]
[1720940718384,3.12335,3201.7,3201.1,7.42]
[1720940718580,3.12335,3201.7,3201.0,5.38401]
[1720940718581,3.12343,3201.6,3201.5,0.04279339]
[1720940718786,3.12369,3201.4,3200.8,2.26]
[1720940719009,4.80529,3201.4,3200.7,7.42]
[1720940719231,3.12383,3201.2,3200.6,2.26]
[1720940721850,3.12393,3201.1,3200.6,2.26]
[1720940726432,3.12393,3201.1,3200.6,2.79846]
[1720940728670,0.32718919,3201.3,3200.6,5.92281]
[1720940728871,0.32718919,3201.3,3200.7,5.3887]
[1720940729077,0.32718919,3201.3,3200.7,5.43174351]
[1720940730334,0.32718919,3201.3,3200.8,3.1242]
[1720940730539,0.32718919,3201.3,3200.9,0.54316435]
[1720940730740,0.32718919,3201.3,3200.9,0.58620785]
[1720940731881,0.32718919,3201.3,3200.9,0.64495452]
[1720940734002,0.32718919,3201.3,3201.1,5.38832]
[1720940734488,0.32718919,3201.3,3201.2,0.10175142]
[1720940734694,0.32718919,3201.3,3201.2,0.96315856]
[1720940737406,0.32718919,3201.3,3201.2,3.22755856]
[1720940740618,0.32718919,3201.3,3201.2,6.35137856]
[1720940744929,0.32718919,3201.3,3201.2,9.47519856]
[1720940750656,0.32718919,3201.3,3201.2,12.59901856]
[1720940761664,0.8926,3202.8,3201.3,2.3817]
[1720940761865,0.8926,3202.8,3202.6,0.789]
[1720940762065,0.8926,3203.1,3202.6,0.789]
[1720940762268,0.8926,3203.1,3202.7,0.10100364]
[1720940763685,3.8926,3203.1,3202.7,0.10100364]
[1720940765193,3.8926,3203.1,3202.4,3.91164]
[1720940765510,0.701453,3203.0,3202.4,3.91164]
[1720940765797,0.701453,3203.0,3202.5,0.10106978]
[1720940765798,0.8926,3202.9,3202.5,0.10106978]
[1720940766374,0.8926,3202.9,3202.2,3.91181]
[1720940766585,0.8926,3202.9,3202.6,0.10094225]
[1720940766896,0.1594053,3202.8,3202.7,0.10092137]
[1720940767397,0.1594053,3202.8,3202.4,0.789]
[1720940767602,0.1594053,3202.8,3202.7,0.10092137]
[1720940767802,0.1594053,3202.8,3202.4,0.789]
[1720940768308,0.1594053,3202.8,3202.5,0.10098751]
[1720940770990,0.1594053,3202.8,3202.2,3.12281]
[1720940771164,0.1594053,3202.8,3202.6,0.10095596]
[1720940771590,0.1594053,3202.8,3202.2,3.12281]
[1720940771771,0.1594053,3202.8,3202.7,0.10092289]
[1720940771971,0.1594053,3202.8,3202.4,2.3233]
[1720940772170,3.823613,3203.0,3202.7,0.10093508]
[1720940772406,3.823613,3203.0,3202.4,2.3233]
[1720940772630,3.823613,3203.0,3202.8,0.10083344]
[1720940772998,3.823613,3203.0,3202.5,0.789]
[1720940773194,3.12216,3203.0,3202.9,0.10080038]
[1720940773579,7.13645,3203.2,3202.5,0.789]
[1720940773778,7.13645,3203.2,3202.9,0.10080038]
[1720940774079,7.13645,3203.2,3202.5,0.789]
[1720940774290,3.12197,3203.1,3203.0,0.10076731]
[1720940774493,3.835617,3203.1,3202.6,2.3233]
[1720940774692,3.835617,3203.1,3203.0,0.10076731]
[1720940774898,0.713647,3203.1,3202.6,2.3233]
[1720940775105,0.8926,3203.2,3203.0,0.10076731]
[1720940775317,0.8926,3203.2,3202.6,2.3233]
[1720940775517,3.12181,3203.3,3203.1,0.10073425]
[1720940775714,3.12181,3203.3,3202.6,2.3233]
[1720940776244,3.12181,3203.3,3202.7,0.10086651]
[1720940776428,0.624353,3203.2,3202.7,0.10086651]
[1720940778809,0.32713023,3203.1,3202.7,0.10086651]
[1720940780618,0.8926,3203.0,3202.7,0.10086651]
[1720940780805,0.8926,3203.0,3202.3,6.17606]
[1720940781009,0.8926,3203.0,3202.4,3.22358678]
[1720940781310,0.49659632,3203.0,3202.6,2.2644]
[1720940781512,0.32713023,3203.1,3202.6,2.2644]
[1720940781739,0.32713023,3203.1,3202.7,0.10084061]
[1720940787685,0.32713023,3203.1,3202.7,0.09995138]
[1720940789345,3.44911023,3203.1,3202.7,0.09995138]
[1720940789677,6.63109322,3203.1,3202.8,0.09995138]
[1720940789883,1.11663262,3203.0,3202.4,5.52224]
[1720940790055,1.11663262,3203.0,3202.9,0.09992441]
[1720940790241,1.11663262,3203.0,3202.4,5.52224]
[1720940790442,1.11663262,3203.0,3202.5,0.10005668]
[1720940792478,1.11663262,3203.0,3202.5,0.88905668]
[1720940792687,0.32713023,3203.1,3202.5,0.88905668]
[1720940792858,5.73908802,3203.1,3202.5,0.10005668]
[1720940793060,3.44910023,3203.1,3202.5,0.10005668]
[1720940793272,5.73908802,3203.1,3202.5,0.10005668]
[1720940793483,0.32713023,3203.1,3203.0,3.1886]
[1720940793847,0.32713023,3203.1,3203.0,3.28848525]
[1720940794480,0.32713023,3203.1,3203.0,7.05161878]
[1720940794985,0.32713023,3203.1,3203.0,5.62155525]
[1720940795292,0.32713023,3203.1,3203.0,6.41055525]
[1720940796887,0.32713023,3203.1,3203.0,0.09988525]
[1720940797045,0.32713023,3203.1,3202.7,2.3996]
[1720940797242,0.32713023,3203.1,3202.8,0.09979909]
[1720940797489,0.32713023,3203.1,3202.7,2.3996]
[1720940797648,0.32713023,3203.1,3202.9,0.09976602]
[1720940797849,0.32713023,3203.1,3202.7,2.3996]
[1720940798046,0.32713023,3203.1,3202.8,0.09979909]
[1720940798385,0.32713023,3203.1,3202.7,5.52194]
[1720940798684,0.32713023,3203.1,3202.8,0.09979909]
[1720940798892,0.32713023,3203.1,3202.7,5.52194]
[1720940799191,0.32713023,3203.1,3203.0,2.3996]
[1720940799684,0.32713023,3203.1,3203.0,2.49935732]
[1720940800249,0.32713023,3203.1,3203.0,0.09975732]
[1720940800450,0.32713023,3203.1,3202.7,5.37935]
[1720940800650,0.32713023,3203.1,3202.8,0.09980975]
[1720940800889,0.32713023,3203.1,3202.7,5.37935]
[1720940801096,0.32713023,3203.1,3202.9,0.09977668]
[1720940801399,0.32713023,3203.1,3202.7,5.37935]
[1720940801903,0.32713023,3203.1,3202.8,0.09980975]
[1720940802053,0.32713023,3203.1,3202.7,5.37935]
[1720940802259,0.32713023,3203.1,3202.8,0.09980975]
[1720940802587,0.32713023,3203.1,3202.7,5.37935]
[1720940802791,0.32713023,3203.1,3202.9,0.09977668]
[1720940802964,0.32713023,3203.1,3202.8,0.09980975]
[1720940803166,0.32713023,3203.1,3203.0,0.09974362]
[1720940803785,0.32713023,3203.1,3202.7,5.37935]
[1720940803951,0.32713023,3203.1,3203.0,0.09974362]
[1720940804155,0.32713023,3203.1,3202.7,5.37935]
[1720940804354,0.32713023,3203.1,3203.0,0.09974362]
[1720940804895,0.32713023,3203.1,3202.7,5.37935]
[1720940805080,0.32713023,3203.1,3203.0,0.09974362]
[1720940805399,0.32713023,3203.1,3202.7,5.37935]
[1720940805549,0.32713023,3203.1,3203.0,0.09974362]
[1720940805755,0.32713023,3203.1,3202.7,5.37935]
[1720940805975,0.32713023,3203.1,3203.0,0.09974362]
[1720940806151,0.32713023,3203.1,3202.7,5.37935]
[1720940806366,0.32713023,3203.1,3203.0,0.09974362]
[1720940807008,0.32713023,3203.1,3202.8,0.789]
[1720940807180,0.32713023,3203.1,3203.0,0.09974362]
[1720940807809,0.32713023,3203.1,3202.8,0.789]
[1720940808106,0.32713023,3203.1,3202.9,0.09977668]
[1720940811085,0.32713023,3203.1,3202.7,5.37935]
[1720940811301,0.32713023,3203.1,3203.0,0.09976645]
[1720940811466,0.32713023,3203.1,3202.7,5.37935]
[1720940811671,0.32713023,3203.1,3202.8,0.09983258]
[1720940811988,0.32713023,3203.1,3202.7,5.37935]
[1720940812186,0.32713023,3203.1,3202.9,0.09979951]
[1720940812371,0.32713023,3203.1,3202.8,0.09983258]
[1720940812574,0.32713023,3203.1,3203.0,0.09976645]
[1720940812804,0.32713023,3203.1,3202.9,0.09979951]
[1720940812996,0.32713023,3203.1,3203.0,0.09976645]
[1720940813399,0.32713023,3203.1,3202.7,5.37935]
[1720940813601,0.32713023,3203.1,3203.0,0.09976645]
[1720940814116,0.32713023,3203.1,3202.7,5.37935]
[1720940814274,0.32713023,3203.1,3203.0,0.09976645]
[1720940814476,0.32713023,3203.1,3202.7,2.257]
[1720940814720,0.32713023,3203.1,3203.0,0.09976645]
[1720940815036,0.32713023,3203.1,3203.0,3.1018]
[1720940815180,0.32713023,3203.1,3203.0,3.20157863]
[1720940816925,0.32713023,3203.1,3203.0,6.32364863]
[1720940820107,0.32713023,3203.1,3203.0,6.38608288]
[1720940820336,0.32713023,3203.1,3203.0,7.33690117]
[1720940820844,0.32713023,3203.1,3203.0,7.27446692]
[1720940822021,0.32713023,3203.1,3203.0,3.36339692]
[1720940822229,0.32713023,3203.1,3203.0,2.41257863]
[1720940827752,0.32713023,3203.1,3203.0,0.09977863]
[1720940828074,0.32713023,3203.1,3203.0,0.09968726]
[1720940831573,0.32713023,3203.1,3202.8,3.91126]
[1720940831788,0.32713023,3203.1,3203.0,0.09969944]
[1720940832271,0.32713023,3203.1,3202.8,3.91126]
[1720940832449,0.32713023,3203.1,3202.9,0.6835107]
[1720940832650,0.32713023,3203.1,3202.9,0.78324321]
[1720940837676,0.32713023,3203.1,3202.9,0.09973251]
[1720940838374,0.32713023,3203.1,3202.7,2.307]
[1720940838685,3.44910023,3203.1,3203.0,0.09972532]
[1720940838862,3.12212,3203.0,3202.5,2.307]
[1720940839441,3.12212,3203.0,3202.6,0.789]
[1720940845189,0.32713023,3203.1,3202.6,0.789]
[1720940845389,3.44913023,3203.1,3202.6,0.789]
[1720940846894,0.32713023,3203.1,3202.6,2.152864]
[1720940847076,0.32713023,3203.1,3203.0,3.2826]
[1720940847254,0.32713023,3203.1,3203.0,2.4936]
[1720940848889,0.32713023,3203.1,3203.0,3.38236646]
[1720940849505,0.32713023,3203.1,3203.0,3.44480158]
[1720940849803,0.32713023,3203.1,3203.0,4.10149774]
[1720940850488,0.32713023,3203.1,3203.0,7.22356774]
[1720940850688,0.32713023,3203.1,3203.0,7.16113262]
[1720940852268,0.32713023,3203.1,3203.0,6.37213262]
[1720940853200,0.32713023,3203.1,3203.0,2.59336646]
[1720940853366,0.32713023,3203.1,3203.0,0.09976646]
[1720940853570,0.32713023,3203.1,3202.8,2.4936]
[1720940853766,2.29077727,3203.4,3203.0,0.09972281]
[1720940853965,2.29077727,3203.4,3202.8,2.4936]
[1720940854201,0.32707871,3203.1,3202.8,2.4936]
[1720940856089,0.32707871,3203.1,3202.8,3.923095]
[1720940859007,0.32707871,3203.1,3202.8,3.134095]
[1720940859577,0.32707871,3203.1,3202.8,2.4936]
[1720940859870,0.32707871,3203.1,3202.6,2.4739]
[1720940864013,3.12226,3202.9,3202.5,0.09984245]
[1720940865912,3.12228,3202.8,3202.5,0.09984245]
[1720940866324,5.41300783,3202.8,3202.5,0.09984245]
[1720940867156,3.12228,3202.8,3202.5,0.09984245]
[1720940868329,3.6635301,3202.8,3202.3,2.4739]
[1720940868645,3.6635301,3202.8,3202.6,0.09980938]
[1720940868938,3.6635301,3202.8,3202.3,2.4739]
[1720940868939,3.6635301,3202.8,3202.7,0.09977631]
[1720940869140,3.6635301,3202.8,3202.3,2.4739]
[1720940869344,3.6635301,3202.8,3202.7,0.09977631]
[1720940869543,3.6635301,3202.8,3202.3,2.4739]
[1720940869747,3.6635301,3202.8,3202.7,0.09688606]
[1720940870044,3.9906529,3202.8,3202.3,2.4739]
[1720940870215,3.9906529,3202.8,3202.7,0.09688606]
[1720940870746,3.9906529,3202.8,3202.3,2.4739]
[1720940870945,3.9906529,3202.8,3202.7,0.09694849]
[1720940871115,3.9906529,3202.8,3202.3,2.4739]
[1720940871459,3.9906529,3202.8,3202.4,0.09415741]
[1720940871625,0.62798545,3202.7,3202.4,0.09415741]
[1720940871823,0.62798545,3202.7,3202.0,7.42]
[1720940872038,5.41168157,3202.6,3202.5,0.09412434]
[1720940872212,3.12248,3202.6,3202.0,7.42]
[1720940872414,3.12248,3202.6,3202.5,0.09418982]
[1720940872722,4.29367199,3202.6,3202.5,0.09418982]
[1720940872925,4.29367199,3202.6,3202.0,7.42]
[1720940873160,3.12248,3202.6,3202.5,0.09418982]
[1720940873342,3.12248,3202.6,3202.0,7.42]
[1720940873650,7.96145447,3202.8,3202.5,0.09418982]
[1720940873652,3.12238,3202.7,3202.5,0.09418982]
[1720940873813,0.3271228,3202.8,3202.4,2.4015]
[1720940874030,0.3271228,3202.8,3202.6,0.09415675]
[1720940874251,0.3271228,3202.8,3202.5,0.09422333]
[1720940874562,0.3271228,3202.8,3202.6,0.09419026]
[1720940874724,0.3271228,3202.8,3202.6,0.789]
[1720940874927,0.3271228,3202.8,3202.7,0.09415415]
[1720940875237,0.3271228,3202.8,3202.4,2.4015]
[1720940875428,0.3271228,3202.8,3202.7,0.09410236]
[1720940875928,0.3271228,3202.8,3202.4,2.4015]